{"text_format":"3","workbook":"xlsx","n_sheets":1,"sheets":["Budget mensile personale"],"read":"whole","date_system":"1900"}

{"sheet":"Budget mensile personale","index":0,"n_rows":62,"n_cols":10,"rows_kept":62,"merged":[[0,1,0,9],[2,1,4,1],[2,2,2,3],[2,7,2,8],[3,2,3,3],[3,7,3,8],[4,2,4,3],[4,6,4,8],[5,1,7,1],[5,2,5,3],[5,7,5,8],[6,2,6,3],[6,7,6,8],[7,2,7,3],[7,6,7,8],[20,6,20,9],[21,1,21,4],[29,6,29,9],[31,1,31,4],[36,6,36,9],[38,1,38,4],[42,6,42,9],[44,1,44,4],[48,6,48,9],[52,1,52,4],[55,6,55,9]]}
[null,"Budget mensile personale"]
[]
[null,"ENTRATE MENSILI PREVISTE","Entrata 1",null,{"v":2500,"d":"€ 2,500"},null,"SPESE PREVISTE TOTALI ","(Entrate previste meno uscite)",null,{"$f":"SUM(C21,C31,C38,C44,C52,C62,H20,H29,H36,H42,H48,H55)","v":{"v":2060,"d":"€ 2,060"}}]
[null,null,"Entrate extra",null,{"v":500,"d":"€ 500"},null,"SPESE EFFETIVE TOTALI ","(Entrate effettive meno uscite)",null,{"$f":"SUM(D21,D31,D38,D44,D52,D62,I20,I29,I36,I42,I48,I55)","v":{"v":2040,"d":"€ 2,040"}}]
[null,null,"Totale entrate mensili",null,{"$f":"SUM(E3:E4)","v":{"v":3000,"d":"€ 3,000"}},null,"Differenza spese totali",null,null,{"$f":"SUM(E21,E31,E38,E44,E52,E62,J20,J29,J36,J42,J48,J55)","v":{"v":20,"d":"€ 20"}}]
[null,"ENTRATE MENSILI EFFETTIVE","Entrata 1",null,{"v":2500,"d":"€ 2,500"},null,"SALDO PREVISTO","(Entrate previste meno uscite)",null,{"$f":"E5-J3","v":{"v":940,"d":"€ 940"}}]
[null,null,"Entrate extra",null,{"v":500,"d":"€ 500"},null,"SALDO EFFETTIVO","(Entrate effettive meno uscite)",null,{"$f":"E8-J4","v":{"v":960,"d":"€ 960"}}]
[null,null,"Totale entrate mensili",null,{"$f":"SUM(E6:E7)","v":{"v":3000,"d":"€ 3,000"}},null,"DIFFERENZA SALDO (effettivo meno previsto)",null,null,{"$f":"J7-J6","v":{"v":20,"d":"€ 20"}}]
[]
[null,"ALLOGGIO","Costo previsto","Costo effettivo","Differenza",null,"SVAGO","Costo previsto","Costo effettivo","Differenza"]
[null,"Mutuo o affitto",{"v":1500,"d":"€ 1,500"},{"v":1400,"d":"€ 1,400"},{"$f":"Alloggio[[#This Row],[Costo previsto]]-Alloggio[[#This Row],[Costo effettivo]]","v":{"v":100,"d":"€ 100"}},null,"Video/DVD",{"v":0,"d":"€ 0"},{"v":50,"d":"€ 50"},{"$f":"Intrattenimento[[#This Row],[Costo previsto]]-Intrattenimento[[#This Row],[Costo effettivo]]","v":{"v":-50,"d":"-€ 50"}}]
[null,"Telefono",{"v":60,"d":"€ 60"},{"v":100,"d":"€ 100"},{"$f":"Alloggio[[#This Row],[Costo previsto]]-Alloggio[[#This Row],[Costo effettivo]]","v":{"v":-40,"d":"-€ 40"}},null,"CD",null,null,{"$f":"Intrattenimento[[#This Row],[Costo previsto]]-Intrattenimento[[#This Row],[Costo effettivo]]","v":{"v":0,"d":"€ 0"}}]
[null,"Elettricità",{"v":50,"d":"€ 50"},{"v":60,"d":"€ 60"},{"$f":"Alloggio[[#This Row],[Costo previsto]]-Alloggio[[#This Row],[Costo effettivo]]","v":{"v":-10,"d":"-€ 10"}},null,"Cinema",null,null,{"$f":"Intrattenimento[[#This Row],[Costo previsto]]-Intrattenimento[[#This Row],[Costo effettivo]]","v":{"v":0,"d":"€ 0"}}]
[null,"Gas",{"v":200,"d":"€ 200"},{"v":180,"d":"€ 180"},{"$f":"Alloggio[[#This Row],[Costo previsto]]-Alloggio[[#This Row],[Costo effettivo]]","v":{"v":20,"d":"€ 20"}},null,"Concerti",null,null,{"$f":"Intrattenimento[[#This Row],[Costo previsto]]-Intrattenimento[[#This Row],[Costo effettivo]]","v":{"v":0,"d":"€ 0"}}]
[null,"Acqua",null,null,{"$f":"Alloggio[[#This Row],[Costo previsto]]-Alloggio[[#This Row],[Costo effettivo]]","v":{"v":0,"d":"€ 0"}},null,"Eventi sportivi",null,null,{"$f":"Intrattenimento[[#This Row],[Costo previsto]]-Intrattenimento[[#This Row],[Costo effettivo]]","v":{"v":0,"d":"€ 0"}}]
[null,"Pay TV",null,null,{"$f":"Alloggio[[#This Row],[Costo previsto]]-Alloggio[[#This Row],[Costo effettivo]]","v":{"v":0,"d":"€ 0"}},null,"Teatro",null,null,{"$f":"Intrattenimento[[#This Row],[Costo previsto]]-Intrattenimento[[#This Row],[Costo effettivo]]","v":{"v":0,"d":"€ 0"}}]
[null,"Rimozione rifiuti",null,null,{"$f":"Alloggio[[#This Row],[Costo previsto]]-Alloggio[[#This Row],[Costo effettivo]]","v":{"v":0,"d":"€ 0"}},null,"Altro",null,null,{"$f":"Intrattenimento[[#This Row],[Costo previsto]]-Intrattenimento[[#This Row],[Costo effettivo]]","v":{"v":0,"d":"€ 0"}}]
[null,"Manutenzione o riparazioni",null,null,{"$f":"Alloggio[[#This Row],[Costo previsto]]-Alloggio[[#This Row],[Costo effettivo]]","v":{"v":0,"d":"€ 0"}},null,"Altro",null,null,{"$f":"Intrattenimento[[#This Row],[Costo previsto]]-Intrattenimento[[#This Row],[Costo effettivo]]","v":{"v":0,"d":"€ 0"}}]
[null,"Forniture",null,null,{"$f":"Alloggio[[#This Row],[Costo previsto]]-Alloggio[[#This Row],[Costo effettivo]]","v":{"v":0,"d":"€ 0"}},null,"Altro",null,null,{"$f":"Intrattenimento[[#This Row],[Costo previsto]]-Intrattenimento[[#This Row],[Costo effettivo]]","v":{"v":0,"d":"€ 0"}}]
[null,"Altro",null,null,{"$f":"Alloggio[[#This Row],[Costo previsto]]-Alloggio[[#This Row],[Costo effettivo]]","v":{"v":0,"d":"€ 0"}},null,"Totale",{"$f":"SUBTOTAL(109,Intrattenimento[Costo previsto])","v":{"v":0,"d":"€ 0"}},{"$f":"SUBTOTAL(109,Intrattenimento[Costo effettivo])","v":{"v":50,"d":"€ 50"}},{"$f":"SUBTOTAL(109,Intrattenimento[Differenza])","v":{"v":-50,"d":"-€ 50"}}]
[null,"Totale",{"$f":"SUBTOTAL(109,Alloggio[Costo previsto])","v":{"v":1810,"d":"€ 1,810"}},{"$f":"SUBTOTAL(109,Alloggio[Costo effettivo])","v":{"v":1740,"d":"€ 1,740"}},{"$f":"SUBTOTAL(109,Alloggio[Differenza])","v":{"v":70,"d":"€ 70"}}]
[{"$nulls":6},"PRESTITI","Costo previsto","Costo effettivo","Differenza"]
[null,"TRASPORTI","Costo previsto","Costo effettivo","Differenza",null,"Personale",null,null,{"$f":"Prestiti[[#This Row],[Costo previsto]]-Prestiti[[#This Row],[Costo effettivo]]","v":{"v":0,"d":"€ 0"}}]
[null,"Pagamento veicolo",{"v":250,"d":"€ 250"},{"v":250,"d":"€ 250"},{"$f":"Trasporti[[#This Row],[Costo previsto]]-Trasporti[[#This Row],[Costo effettivo]]","v":{"v":0,"d":"€ 0"}},null,"Studente",null,null,{"$f":"Prestiti[[#This Row],[Costo previsto]]-Prestiti[[#This Row],[Costo effettivo]]","v":{"v":0,"d":"€ 0"}}]
[null,"Bus/taxi",null,null,{"$f":"Trasporti[[#This Row],[Costo previsto]]-Trasporti[[#This Row],[Costo effettivo]]","v":{"v":0,"d":"€ 0"}},null,"Carta di credito",null,null,{"$f":"Prestiti[[#This Row],[Costo previsto]]-Prestiti[[#This Row],[Costo effettivo]]","v":{"v":0,"d":"€ 0"}}]
[null,"Assicurazione",null,null,{"$f":"Trasporti[[#This Row],[Costo previsto]]-Trasporti[[#This Row],[Costo effettivo]]","v":{"v":0,"d":"€ 0"}},null,"Carta di credito",null,null,{"$f":"Prestiti[[#This Row],[Costo previsto]]-Prestiti[[#This Row],[Costo effettivo]]","v":{"v":0,"d":"€ 0"}}]
[null,"Licenze",null,null,{"$f":"Trasporti[[#This Row],[Costo previsto]]-Trasporti[[#This Row],[Costo effettivo]]","v":{"v":0,"d":"€ 0"}},null,"Carta di credito",null,null,{"$f":"Prestiti[[#This Row],[Costo previsto]]-Prestiti[[#This Row],[Costo effettivo]]","v":{"v":0,"d":"€ 0"}}]
[null,"Carburante",null,null,{"$f":"Trasporti[[#This Row],[Costo previsto]]-Trasporti[[#This Row],[Costo effettivo]]","v":{"v":0,"d":"€ 0"}},null,"Altro",null,null,{"$f":"Prestiti[[#This Row],[Costo previsto]]-Prestiti[[#This Row],[Costo effettivo]]","v":{"v":0,"d":"€ 0"}}]
[null,"Manutenzione",null,null,{"$f":"Trasporti[[#This Row],[Costo previsto]]-Trasporti[[#This Row],[Costo effettivo]]","v":{"v":0,"d":"€ 0"}},null,"Totale",{"$f":"SUBTOTAL(109,Prestiti[Costo previsto])","v":{"v":0,"d":"€ 0"}},{"$f":"SUBTOTAL(109,Prestiti[Costo effettivo])","v":{"v":0,"d":"€ 0"}},{"$f":"SUBTOTAL(109,Prestiti[Differenza])","v":{"v":0,"d":"€ 0"}}]
[null,"Altro",null,null,{"$f":"Trasporti[[#This Row],[Costo previsto]]-Trasporti[[#This Row],[Costo effettivo]]","v":{"v":0,"d":"€ 0"}}]
[null,"Totale",{"$f":"SUBTOTAL(109,Trasporti[Costo previsto])","v":{"v":250,"d":"€ 250"}},{"$f":"SUBTOTAL(109,Trasporti[Costo effettivo])","v":{"v":250,"d":"€ 250"}},{"$f":"SUBTOTAL(109,Trasporti[Differenza])","v":{"v":0,"d":"€ 0"}},null,"TASSE","Costo previsto","Costo effettivo","Differenza"]
[{"$nulls":6},"Nazionali",null,null,{"$f":"Tasse[[#This Row],[Costo previsto]]-Tasse[[#This Row],[Costo effettivo]]","v":{"v":0,"d":"€ 0"}}]
[null,"ASSICURAZIONE","Costo previsto","Costo effettivo","Differenza",null,"Regionali",null,null,{"$f":"Tasse[[#This Row],[Costo previsto]]-Tasse[[#This Row],[Costo effettivo]]","v":{"v":0,"d":"€ 0"}}]
[null,"Casa",null,null,{"$f":"Assicurazione[[#This Row],[Costo previsto]]-Assicurazione[[#This Row],[Costo effettivo]]","v":{"v":0,"d":"€ 0"}},null,"Locali",null,null,{"$f":"Tasse[[#This Row],[Costo previsto]]-Tasse[[#This Row],[Costo effettivo]]","v":{"v":0,"d":"€ 0"}}]
[null,"Salute",null,null,{"$f":"Assicurazione[[#This Row],[Costo previsto]]-Assicurazione[[#This Row],[Costo effettivo]]","v":{"v":0,"d":"€ 0"}},null,"Altro",null,null,{"$f":"Tasse[[#This Row],[Costo previsto]]-Tasse[[#This Row],[Costo effettivo]]","v":{"v":0,"d":"€ 0"}}]
[null,"Vita",null,null,{"$f":"Assicurazione[[#This Row],[Costo previsto]]-Assicurazione[[#This Row],[Costo effettivo]]","v":{"v":0,"d":"€ 0"}},null,"Totale",{"$f":"SUBTOTAL(109,Tasse[Costo previsto])","v":{"v":0,"d":"€ 0"}},{"$f":"SUBTOTAL(109,Tasse[Costo effettivo])","v":{"v":0,"d":"€ 0"}},{"$f":"SUBTOTAL(109,Tasse[Differenza])","v":{"v":0,"d":"€ 0"}}]
[null,"Altro",null,null,{"$f":"Assicurazione[[#This Row],[Costo previsto]]-Assicurazione[[#This Row],[Costo effettivo]]","v":{"v":0,"d":"€ 0"}}]
[null,"Totale",{"$f":"SUBTOTAL(109,Assicurazione[Costo previsto])","v":{"v":0,"d":"€ 0"}},{"$f":"SUBTOTAL(109,Assicurazione[Costo effettivo])","v":{"v":0,"d":"€ 0"}},{"$f":"SUBTOTAL(109,Assicurazione[Differenza])","v":{"v":0,"d":"€ 0"}},null,"RISPARMI O INVESTIMENTI","Costo previsto","Costo effettivo","Differenza"]
[{"$nulls":6},"Fondo pensione",null,null,{"$f":"RisparmiOInvestimenti[[#This Row],[Costo previsto]]-RisparmiOInvestimenti[[#This Row],[Costo effettivo]]","v":{"v":0,"d":"€ 0"}}]
[null,"ALIMENTARI","Costo previsto","Costo effettivo","Differenza",null,"Conto investimento",null,null,{"$f":"RisparmiOInvestimenti[[#This Row],[Costo previsto]]-RisparmiOInvestimenti[[#This Row],[Costo effettivo]]","v":{"v":0,"d":"€ 0"}}]
[null,"Generi alimentari",null,null,{"$f":"Cibo[[#This Row],[Costo previsto]]-Cibo[[#This Row],[Costo effettivo]]","v":{"v":0,"d":"€ 0"}},null,"Altro",null,null,{"$f":"RisparmiOInvestimenti[[#This Row],[Costo previsto]]-RisparmiOInvestimenti[[#This Row],[Costo effettivo]]","v":{"v":0,"d":"€ 0"}}]
[null,"Cene fuori",null,null,{"$f":"Cibo[[#This Row],[Costo previsto]]-Cibo[[#This Row],[Costo effettivo]]","v":{"v":0,"d":"€ 0"}},null,"Totale",{"$f":"SUBTOTAL(109,RisparmiOInvestimenti[Costo previsto])","v":{"v":0,"d":"€ 0"}},{"$f":"SUBTOTAL(109,RisparmiOInvestimenti[Costo effettivo])","v":{"v":0,"d":"€ 0"}},{"$f":"SUBTOTAL(109,RisparmiOInvestimenti[Differenza])","v":{"v":0,"d":"€ 0"}}]
[null,"Altro",null,null,{"$f":"Cibo[[#This Row],[Costo previsto]]-Cibo[[#This Row],[Costo effettivo]]","v":{"v":0,"d":"€ 0"}}]
[null,"Totale",{"$f":"SUBTOTAL(109,Cibo[Costo previsto])","v":{"v":0,"d":"€ 0"}},{"$f":"SUBTOTAL(109,Cibo[Costo effettivo])","v":{"v":0,"d":"€ 0"}},{"$f":"SUBTOTAL(109,Cibo[Differenza])","v":{"v":0,"d":"€ 0"}},null,"REGALI E DONAZIONI","Costo previsto","Costo effettivo","Differenza"]
[{"$nulls":6},"Beneficenza 1",null,null,{"$f":"RegaliEDonazioni[[#This Row],[Costo previsto]]-RegaliEDonazioni[[#This Row],[Costo effettivo]]","v":{"v":0,"d":"€ 0"}}]
[null,"ANIMALI","Costo previsto","Costo effettivo","Differenza",null,"Beneficenza 2",null,null,{"$f":"RegaliEDonazioni[[#This Row],[Costo previsto]]-RegaliEDonazioni[[#This Row],[Costo effettivo]]","v":{"v":0,"d":"€ 0"}}]
[null,"Alimentari",null,null,{"$f":"Animali_domestici[[#This Row],[Costo previsto]]-Animali_domestici[[#This Row],[Costo effettivo]]","v":{"v":0,"d":"€ 0"}},null,"Beneficenza 3",null,null,{"$f":"RegaliEDonazioni[[#This Row],[Costo previsto]]-RegaliEDonazioni[[#This Row],[Costo effettivo]]","v":{"v":0,"d":"€ 0"}}]
[null,"Veterinario",null,null,{"$f":"Animali_domestici[[#This Row],[Costo previsto]]-Animali_domestici[[#This Row],[Costo effettivo]]","v":{"v":0,"d":"€ 0"}},null,"Totale",{"$f":"SUBTOTAL(109,RegaliEDonazioni[Costo previsto])","v":{"v":0,"d":"€ 0"}},{"$f":"SUBTOTAL(109,RegaliEDonazioni[Costo effettivo])","v":{"v":0,"d":"€ 0"}},{"$f":"SUBTOTAL(109,RegaliEDonazioni[Differenza])","v":{"v":0,"d":"€ 0"}}]
[null,"Toelettatura",null,null,{"$f":"Animali_domestici[[#This Row],[Costo previsto]]-Animali_domestici[[#This Row],[Costo effettivo]]","v":{"v":0,"d":"€ 0"}}]
[null,"Giocattoli",null,null,{"$f":"Animali_domestici[[#This Row],[Costo previsto]]-Animali_domestici[[#This Row],[Costo effettivo]]","v":{"v":0,"d":"€ 0"}},null,"SPESE LEGALI","Costo previsto","Costo effettivo","Differenza"]
[null,"Altro",null,null,{"$f":"Animali_domestici[[#This Row],[Costo previsto]]-Animali_domestici[[#This Row],[Costo effettivo]]","v":{"v":0,"d":"€ 0"}},null,"Avvocato",null,null,{"$f":"Spese_legali[[#This Row],[Costo previsto]]-Spese_legali[[#This Row],[Costo effettivo]]","v":{"v":0,"d":"€ 0"}}]
[null,"Totale",{"$f":"SUBTOTAL(109,Animali_domestici[Costo previsto])","v":{"v":0,"d":"€ 0"}},{"$f":"SUBTOTAL(109,Animali_domestici[Costo effettivo])","v":{"v":0,"d":"€ 0"}},{"$f":"SUBTOTAL(109,Animali_domestici[Differenza])","v":{"v":0,"d":"€ 0"}},null,"Alimenti",null,null,{"$f":"Spese_legali[[#This Row],[Costo previsto]]-Spese_legali[[#This Row],[Costo effettivo]]","v":{"v":0,"d":"€ 0"}}]
[{"$nulls":6},"Pagamenti da vincoli o sentenze",null,null,{"$f":"Spese_legali[[#This Row],[Costo previsto]]-Spese_legali[[#This Row],[Costo effettivo]]","v":{"v":0,"d":"€ 0"}}]
[null,"CURA DELLA PERSONA","Costo previsto","Costo effettivo","Differenza",null,"Altro",null,null,{"$f":"Spese_legali[[#This Row],[Costo previsto]]-Spese_legali[[#This Row],[Costo effettivo]]","v":{"v":0,"d":"€ 0"}}]
[null,"Spese mediche",null,null,{"$f":"Cura_della_persona[[#This Row],[Costo previsto]]-Cura_della_persona[[#This Row],[Costo effettivo]]","v":{"v":0,"d":"€ 0"}},null,"Totale",{"$f":"SUBTOTAL(109,Spese_legali[Costo previsto])","v":{"v":0,"d":"€ 0"}},{"$f":"SUBTOTAL(109,Spese_legali[Costo effettivo])","v":{"v":0,"d":"€ 0"}},{"$f":"SUBTOTAL(109,Spese_legali[Differenza])","v":{"v":0,"d":"€ 0"}}]
[null,"Parrucchiere/manicure",null,null,{"$f":"Cura_della_persona[[#This Row],[Costo previsto]]-Cura_della_persona[[#This Row],[Costo effettivo]]","v":{"v":0,"d":"€ 0"}}]
[null,"Abbigliamento",null,null,{"$f":"Cura_della_persona[[#This Row],[Costo previsto]]-Cura_della_persona[[#This Row],[Costo effettivo]]","v":{"v":0,"d":"€ 0"}}]
[null,"Lavanderia",null,null,{"$f":"Cura_della_persona[[#This Row],[Costo previsto]]-Cura_della_persona[[#This Row],[Costo effettivo]]","v":{"v":0,"d":"€ 0"}}]
[null,"Palestra",null,null,{"$f":"Cura_della_persona[[#This Row],[Costo previsto]]-Cura_della_persona[[#This Row],[Costo effettivo]]","v":{"v":0,"d":"€ 0"}}]
[null,"Quote o contributi associativi",null,null,{"$f":"Cura_della_persona[[#This Row],[Costo previsto]]-Cura_della_persona[[#This Row],[Costo effettivo]]","v":{"v":0,"d":"€ 0"}}]
[null,"Altro",null,null,{"$f":"Cura_della_persona[[#This Row],[Costo previsto]]-Cura_della_persona[[#This Row],[Costo effettivo]]","v":{"v":0,"d":"€ 0"}}]
[null,"Totale",{"$f":"SUBTOTAL(109,Cura_della_persona[Costo previsto])","v":{"v":0,"d":"€ 0"}},{"$f":"SUBTOTAL(109,Cura_della_persona[Costo effettivo])","v":{"v":0,"d":"€ 0"}},{"$f":"SUBTOTAL(109,Cura_della_persona[Differenza])","v":{"v":0,"d":"€ 0"}}]